[Event "Early-Titled-Tuesday-Blitz-May-14-2024"]
[Site "Chess.com"]
[Date "2024.05.14"]
[Round "3"]
[White "ProtectiveCarrot"]
[Black "lucasmito"]
[Result "0-1"]
[WhiteElo "2511"]
[BlackElo "2732"]
[TimeControl "180+1"]
[EndTime "8:26:56 PDT"]
[Termination "lucasmito won by resignation"]

1. e4 {[%clk 0:03:00.9]} 1... e5 {[%clk 0:02:59.8]} 2. Nf3 {[%clk 0:03:00.3]}
2... Nc6 {[%clk 0:03:00.3]} 3. Bb5 {[%clk 0:03:00.7]} 3... f5 {[%clk 0:03:00]}
4. d3 {[%clk 0:02:58.7]} 4... fxe4 {[%clk 0:02:58.4]} 5. dxe4 {[%clk 0:02:59]}
5... Nf6 {[%clk 0:02:56.7]} 6. O-O {[%clk 0:02:57.7]} 6... d6 {[%clk 0:02:56.3]}
7. Nc3 {[%clk 0:02:04.1]} 7... Be7 {[%clk 0:02:55.7]} 8. h3 {[%clk 0:01:53.8]}
8... O-O {[%clk 0:02:54.9]} 9. Be3 {[%clk 0:01:48.4]} 9... Qe8 {[%clk
0:02:54.2]} 10. Bc4+ {[%clk 0:01:38.6]} 10... Kh8 {[%clk 0:02:53.8]} 11. a4
{[%clk 0:01:34.8]} 11... a6 {[%clk 0:02:40]} 12. Qe2 {[%clk 0:01:28.2]} 12...
Nh5 {[%clk 0:02:27.7]} 13. Ng5 {[%clk 0:01:21.7]} 13... Bxg5 {[%clk 0:02:14.1]}
14. Bxg5 {[%clk 0:01:22.6]} 14... Nd4 {[%clk 0:02:14.1]} 15. Qd3 {[%clk
0:01:17]} 15... Qg6 {[%clk 0:02:12.6]} 16. Bd2 {[%clk 0:01:03.8]} 16... Rf3
{[%clk 0:02:09.1]} 17. Bf7 {[%clk 0:00:44.9]} 17... Rxf7 {[%clk 0:01:31.4]} 0-1

[Event "Early-Titled-Tuesday-Blitz-May-14-2024"]
[Site "Chess.com"]
[Date "2024.05.14"]
[Round "3"]
[White "ChessSwole"]
[Black "rachidhuilda"]
[Result "1-0"]
[WhiteElo "2609"]
[BlackElo "2327"]
[TimeControl "180+1"]
[EndTime "8:26:56 PDT"]
[Termination "ChessSwole won by resignation"]

1. d4 {[%clk 0:02:58.2]} 1... Nf6 {[%clk 0:02:59.5]} 2. c4 {[%clk 0:02:56.8]}
2... c5 {[%clk 0:02:59.8]} 3. d5 {[%clk 0:02:57]} 3... b5 {[%clk 0:03:00.2]} 4.
cxb5 {[%clk 0:02:57.9]} 4... a6 {[%clk 0:03:00.5]} 5. e3 {[%clk 0:02:58.3]} 5...
e6 {[%clk 0:02:58.3]} 6. Nc3 {[%clk 0:02:57.8]} 6... exd5 {[%clk 0:02:57.5]} 7.
Nxd5 {[%clk 0:02:53]} 7... Bb7 {[%clk 0:02:57.2]} 8. e4 {[%clk 0:02:43.9]} 8...
Nxe4 {[%clk 0:02:31.9]} 9. b6 {[%clk 0:02:40.7]} 9... Bd6 {[%clk 0:02:24.3]} 10.
Bc4 {[%clk 0:02:28.9]} 10... O-O {[%clk 0:02:22.5]} 11. Nf3 {[%clk 0:02:28.3]}
11... Nc6 {[%clk 0:01:55.7]} 12. O-O {[%clk 0:02:19.2]} 12... Ne5 {[%clk
0:01:52.8]} 13. Nxe5 {[%clk 0:02:16.8]} 13... Bxe5 {[%clk 0:01:52.9]} 14. Qf3
{[%clk 0:02:08.3]} 14... Nf6 {[%clk 0:01:38]} 15. Nxf6+ {[%clk 0:02:04.8]} 15...
Qxf6 {[%clk 0:01:37.9]} 16. Qxb7 {[%clk 0:02:01.5]} 16... Bxh2+ {[%clk
0:01:36.1]} 17. Kxh2 {[%clk 0:02:00.7]} 17... Qh4+ {[%clk 0:01:35.6]} 18. Kg1
{[%clk 0:02:01]} 18... Qxc4 {[%clk 0:01:36]} 19. Qxd7 {[%clk 0:01:54.2]} 19...
Rab8 {[%clk 0:01:35]} 20. b7 {[%clk 0:01:51.6]} 20... Qb5 {[%clk 0:01:27.6]} 21.
Qxb5 {[%clk 0:01:49.9]} 21... axb5 {[%clk 0:01:27.8]} 22. Be3 {[%clk 0:01:49.6]}
22... c4 {[%clk 0:01:25.5]} 23. Bc5 {[%clk 0:01:45.6]} 23... Rfe8 {[%clk
0:01:25.1]} 24. Rfe1 {[%clk 0:01:45.7]} 24... Re6 {[%clk 0:01:22.6]} 25. a4
{[%clk 0:01:40.4]} 25... bxa4 {[%clk 0:01:14.8]} 26. Rxe6 {[%clk 0:01:40.1]}
26... fxe6 {[%clk 0:01:15.1]} 27. Rxa4 {[%clk 0:01:40.7]} 27... Rxb7 {[%clk
0:01:15.3]} 28. Bd4 {[%clk 0:01:41.1]} 28... Rd7 {[%clk 0:01:13.6]} 29. Bc3
{[%clk 0:01:41]} 29... Rc7 {[%clk 0:01:12.9]} 30. f4 {[%clk 0:01:37.3]} 30...
Kf7 {[%clk 0:01:12.7]} 31. Kf2 {[%clk 0:01:37.4]} 31... h5 {[%clk 0:01:12.5]}
32. Kf3 {[%clk 0:01:37.8]} 32... Ke7 {[%clk 0:01:03.5]} 33. Bxg7 {[%clk
0:01:36.2]} 1-0

[Event "Early-Titled-Tuesday-Blitz-May-14-2024"]
[Site "Chess.com"]
[Date "2024.05.14"]
[Round "3"]
[White "hsd2016"]
[Black "Smoking_Crow"]
[Result "1-0"]
[WhiteElo "2332"]
[BlackElo "2587"]
[TimeControl "180+1"]
[EndTime "8:27:05 PDT"]
[Termination "hsd2016 won by resignation"]

1. e4 {[%clk 0:03:00.9]} 1... c6 {[%clk 0:02:59.4]} 2. d4 {[%clk 0:03:00.3]}
2... d5 {[%clk 0:02:59.7]} 3. exd5 {[%clk 0:03:00.3]} 3... cxd5 {[%clk
0:03:00.6]} 4. Bf4 {[%clk 0:03:00.9]} 4... Nf6 {[%clk 0:02:58.3]} 5. Bd3 {[%clk
0:03:00.9]} 5... Bg4 {[%clk 0:02:57.5]} 6. Nf3 {[%clk 0:02:50.7]} 6... Nc6
{[%clk 0:02:57.3]} 7. c3 {[%clk 0:02:50]} 7... e6 {[%clk 0:02:57.1]} 8. Nbd2
{[%clk 0:02:49.9]} 8... Be7 {[%clk 0:02:57.1]} 9. h3 {[%clk 0:02:49.1]} 9... Bh5
{[%clk 0:02:57]} 10. O-O {[%clk 0:02:49.4]} 10... O-O {[%clk 0:02:56.6]} 11. Qb3
{[%clk 0:02:44.6]} 11... Na5 {[%clk 0:02:52.2]} 12. Qc2 {[%clk 0:02:42.6]} 12...
Bg6 {[%clk 0:02:51.3]} 13. Ne5 {[%clk 0:02:41.7]} 13... Bxd3 {[%clk 0:02:49.9]}
14. Qxd3 {[%clk 0:02:42.6]} 14... Rc8 {[%clk 0:02:49.3]} 15. Ndf3 {[%clk
0:02:39.2]} 15... Ne4 {[%clk 0:02:38]} 16. Rfe1 {[%clk 0:02:31.5]} 16... h6
{[%clk 0:02:33.6]} 17. Nd2 {[%clk 0:02:19.3]} 17... Nxd2 {[%clk 0:02:31.8]} 18.
Bxd2 {[%clk 0:02:18]} 18... Bd6 {[%clk 0:02:30.9]} 19. Qg3 {[%clk 0:02:13.2]}
19... Bxe5 {[%clk 0:02:27.2]} 20. Rxe5 {[%clk 0:02:09.8]} 20... Qf6 {[%clk
0:02:24.6]} 21. Rh5 {[%clk 0:02:06.1]} 21... Kh7 {[%clk 0:02:19.2]} 22. Bf4
{[%clk 0:01:37.7]} 22... Qg6 {[%clk 0:02:14]} 23. Qh4 {[%clk 0:01:36.7]} 23...
Nc4 {[%clk 0:02:10.1]} 24. Re1 {[%clk 0:01:36.6]} 24... Nxb2 {[%clk 0:02:08]}
25. Re3 {[%clk 0:01:35.3]} 25... Nd1 {[%clk 0:01:57]} 26. Rg3 {[%clk 0:01:33.7]}
26... Qxg3 {[%clk 0:01:40.6]} 27. fxg3 {[%clk 0:01:20.9]} 27... Nxc3 {[%clk
0:01:37.1]} 28. Bxh6 {[%clk 0:00:53]} 28... g6 {[%clk 0:01:37.2]} 29. Qf6 {[%clk
0:00:52.9]} 29... Rg8 {[%clk 0:01:36.3]} 30. Qxf7+ {[%clk 0:00:53.3]} 1-0

[Event "Early-Titled-Tuesday-Blitz-May-14-2024"]
[Site "Chess.com"]
[Date "2024.05.14"]
[Round "3"]
[White "Iball95"]
[Black "CaspiIsrael"]
[Result "1-0"]
[WhiteElo "2921"]
[BlackElo "2607"]
[TimeControl "180+1"]
[EndTime "8:27:08 PDT"]
[Termination "Iball95 won by resignation"]

1. e4 {[%clk 0:03:00.9]} 1... e5 {[%clk 0:02:58.7]} 2. Nf3 {[%clk 0:03:01.2]}
2... Nc6 {[%clk 0:02:58.5]} 3. Nc3 {[%clk 0:03:01.9]} 3... Nf6 {[%clk
0:02:57.8]} 4. Bb5 {[%clk 0:03:02.5]} 4... Bb4 {[%clk 0:02:54.7]} 5. Nd5 {[%clk
0:03:02.3]} 5... Nxd5 {[%clk 0:02:47.8]} 6. exd5 {[%clk 0:03:03.2]} 6... Nd4
{[%clk 0:02:48]} 7. Nxd4 {[%clk 0:03:02]} 7... exd4 {[%clk 0:02:48.1]} 8. a3
{[%clk 0:03:02.7]} 8... Bc5 {[%clk 0:02:45.4]} 9. Qe2+ {[%clk 0:03:01.5]} 9...
Qe7 {[%clk 0:02:45.4]} 10. b4 {[%clk 0:03:02]} 10... Qxe2+ {[%clk 0:02:39.8]}
11. Kxe2 {[%clk 0:03:02.9]} 11... Bb6 {[%clk 0:02:40.1]} 12. Bb2 {[%clk
0:03:03.1]} 12... a6 {[%clk 0:02:39.9]} 13. Ba4 {[%clk 0:02:58.4]} 13... O-O
{[%clk 0:02:36.8]} 14. Kd3 {[%clk 0:02:56.6]} 14... d6 {[%clk 0:02:37]} 15. Bxd4
{[%clk 0:02:56.1]} 15... Bf5+ {[%clk 0:02:36.8]} 16. Kc3 {[%clk 0:02:54.4]}
16... Bxd4+ {[%clk 0:02:34.6]} 17. Kxd4 {[%clk 0:02:55.3]} 17... b5 {[%clk
0:02:34.9]} 18. Bb3 {[%clk 0:02:54.8]} 18... Rfe8 {[%clk 0:02:35.2]} 19. Rhe1
{[%clk 0:02:53.7]} 19... f6 {[%clk 0:02:35.1]} 20. a4 {[%clk 0:02:43.3]} 20...
Kf7 {[%clk 0:02:32.7]} 21. d3 {[%clk 0:02:37.7]} 21... h5 {[%clk 0:02:29.7]} 22.
Rxe8 {[%clk 0:01:50.6]} 22... Rxe8 {[%clk 0:02:15.9]} 23. axb5 {[%clk
0:01:50.8]} 23... axb5 {[%clk 0:02:16.4]} 24. Ra7 {[%clk 0:01:51.2]} 24... Re2
{[%clk 0:02:09.6]} 25. Rxc7+ {[%clk 0:01:50.8]} 25... Kg6 {[%clk 0:02:08.6]} 26.
c4 {[%clk 0:01:50.1]} 26... Rd2 {[%clk 0:01:07.7]} 27. cxb5 {[%clk 0:01:48.4]}
27... Rxd3+ {[%clk 0:01:08]} 28. Kc4 {[%clk 0:01:45.5]} 28... Rd2 {[%clk
0:01:00.9]} 29. b6 {[%clk 0:01:43.2]} 29... Be4 {[%clk 0:00:59.4]} 30. Kc3
{[%clk 0:01:40.7]} 30... Rxf2 {[%clk 0:00:57.6]} 31. b7 {[%clk 0:01:38]} 31...
Rxg2 {[%clk 0:00:55.9]} 32. b8=Q {[%clk 0:01:37.5]} 32... Rxh2 {[%clk
0:00:55.8]} 33. Qe8+ {[%clk 0:01:33.6]} 1-0

[Event "Early-Titled-Tuesday-Blitz-May-14-2024"]
[Site "Chess.com"]
[Date "2024.05.14"]
[Round "3"]
[White "Semetey"]
[Black "Maria_Elayza"]
[Result "1-0"]
[WhiteElo "2587"]
[BlackElo "2259"]
[TimeControl "180+1"]
[EndTime "8:27:13 PDT"]
[Termination "Semetey won by resignation"]

1. Nc3 {[%clk 0:02:28.3]} 1... d5 {[%clk 0:02:53.1]} 2. e4 {[%clk 0:02:23.9]}
2... dxe4 {[%clk 0:02:49.9]} 3. Nxe4 {[%clk 0:02:23.5]} 3... Nd7 {[%clk
0:02:46.7]} 4. Nf3 {[%clk 0:02:20.4]} 4... Ngf6 {[%clk 0:02:46.4]} 5. Ng3 {[%clk
0:02:20.3]} 5... e6 {[%clk 0:02:45.9]} 6. d4 {[%clk 0:02:18.4]} 6... Bd6 {[%clk
0:02:43.5]} 7. Bd3 {[%clk 0:02:17.6]} 7... O-O {[%clk 0:02:42.6]} 8. Bg5 {[%clk
0:02:16.7]} 8... c5 {[%clk 0:02:41.5]} 9. c3 {[%clk 0:02:16.2]} 9... Qc7 {[%clk
0:02:40]} 10. Qc2 {[%clk 0:02:14.1]} 10... h6 {[%clk 0:02:38.9]} 11. h4 {[%clk
0:02:14.3]} 11... cxd4 {[%clk 0:02:35.2]} 12. Nxd4 {[%clk 0:02:13.9]} 12... a6
{[%clk 0:02:30]} 13. Ne4 {[%clk 0:02:08.8]} 13... Nxe4 {[%clk 0:02:18.6]} 14.
Bxe4 {[%clk 0:02:09.7]} 14... Bf4 {[%clk 0:02:14]} 15. g3 {[%clk 0:02:07.5]}
15... Be5 {[%clk 0:02:13.1]} 16. Nf3 {[%clk 0:02:06]} 16... f5 {[%clk
0:02:07.1]} 17. Bd3 {[%clk 0:02:03.8]} 17... hxg5 {[%clk 0:02:06]} 18. Nxg5
{[%clk 0:02:04.7]} 18... Bf6 {[%clk 0:02:04]} 19. O-O-O {[%clk 0:02:00.7]} 19...
Nc5 {[%clk 0:02:01]} 20. Bc4 {[%clk 0:01:59.8]} 20... Bxg5+ {[%clk 0:01:58.3]}
21. hxg5 {[%clk 0:01:59]} 21... b5 {[%clk 0:01:56.8]} 22. f4 {[%clk 0:01:50.6]}
22... bxc4 {[%clk 0:01:55.1]} 23. g6 {[%clk 0:01:50.6]} 23... Rf6 {[%clk
0:01:38.1]} 24. Rh8+ {[%clk 0:01:47]} 24... Kxh8 {[%clk 0:01:33.4]} 25. Qh2+
{[%clk 0:01:47.9]} 25... Kg8 {[%clk 0:01:32.8]} 26. Qh7+ {[%clk 0:01:48.8]}
26... Kf8 {[%clk 0:01:30]} 27. Qh8+ {[%clk 0:01:49.7]} 27... Ke7 {[%clk
0:01:27.4]} 28. Qxg7+ {[%clk 0:01:49.6]} 28... Ke8 {[%clk 0:01:27.5]} 29. Qxc7
{[%clk 0:01:46.6]} 29... Bd7 {[%clk 0:01:26.8]} 30. Qxc5 {[%clk 0:01:41.2]}
30... Rxg6 {[%clk 0:01:25.9]} 31. Qe5 {[%clk 0:01:27.3]} 31... Rd8 {[%clk
0:01:20]} 32. Qh8+ {[%clk 0:01:22.7]} 32... Ke7 {[%clk 0:01:20]} 33. Qh7+ {[%clk
0:01:23.1]} 33... Kf6 {[%clk 0:01:19.4]} 34. Qh4+ {[%clk 0:01:20.7]} 1-0

[Event "Early-Titled-Tuesday-Blitz-May-14-2024"]
[Site "Chess.com"]
[Date "2024.05.14"]
[Round "3"]
[White "MasterKroket"]
[Black "kingofthenil"]
[Result "0-1"]
[WhiteElo "2542"]
[BlackElo "2837"]
[TimeControl "180+1"]
[EndTime "8:27:16 PDT"]
[Termination "kingofthenil won by checkmate"]

1. e4 {[%clk 0:03:00.9]} 1... Nc6 {[%clk 0:02:57.5]} 2. d4 {[%clk 0:02:59.7]}
2... d5 {[%clk 0:02:57.4]} 3. e5 {[%clk 0:02:42]} 3... Bf5 {[%clk 0:02:52.7]} 4.
Bb5 {[%clk 0:02:41.8]} 4... e6 {[%clk 0:02:48.6]} 5. Nd2 {[%clk 0:02:37.1]} 5...
Ne7 {[%clk 0:02:37.2]} 6. Nb3 {[%clk 0:02:32.1]} 6... a6 {[%clk 0:02:35.2]} 7.
Be2 {[%clk 0:02:27.5]} 7... f6 {[%clk 0:02:33.4]} 8. exf6 {[%clk 0:02:25.2]}
8... gxf6 {[%clk 0:02:31.6]} 9. c3 {[%clk 0:02:12.7]} 9... Rg8 {[%clk
0:02:28.6]} 10. Bh5+ {[%clk 0:02:09.9]} 10... Bg6 {[%clk 0:02:26.6]} 11. Nh3
{[%clk 0:02:06.7]} 11... e5 {[%clk 0:02:25.6]} 12. dxe5 {[%clk 0:01:59.5]} 12...
fxe5 {[%clk 0:02:26.5]} 13. Nc5 {[%clk 0:01:49.2]} 13... Qd6 {[%clk 0:02:24.6]}
14. Nxb7 {[%clk 0:01:39.8]} 14... Qf6 {[%clk 0:02:21.6]} 15. Bg5 {[%clk
0:01:34.3]} 15... Qf7 {[%clk 0:02:18.8]} 16. Bf3 {[%clk 0:01:17.7]} 16... e4
{[%clk 0:02:14.5]} 17. Bg4 {[%clk 0:01:07.5]} 17... Ne5 {[%clk 0:02:08.7]} 18.
O-O {[%clk 0:00:50.8]} 18... Nxg4 {[%clk 0:02:08.3]} 19. Qxg4 {[%clk 0:00:51.7]}
19... Bf5 {[%clk 0:02:08.5]} 20. Qf4 {[%clk 0:00:37.5]} 20... Ng6 {[%clk
0:02:06.6]} 21. Qe3 {[%clk 0:00:34]} 21... Ne5 {[%clk 0:02:00.8]} 22. Bf4 {[%clk
0:00:28.2]} 22... Nc4 {[%clk 0:01:54.3]} 23. Qd4 {[%clk 0:00:20.6]} 23... Bxh3
{[%clk 0:01:53.3]} 24. Rfe1 {[%clk 0:00:20.1]} 24... Rxg2+ {[%clk 0:01:52.6]}
25. Kh1 {[%clk 0:00:19.3]} 25... Qxf4 {[%clk 0:01:52.1]} 26. b3 {[%clk
0:00:11.7]} 26... Qxh2# {[%clk 0:01:51.9]} 0-1

[Event "Early-Titled-Tuesday-Blitz-May-14-2024"]
[Site "Chess.com"]
[Date "2024.05.14"]
[Round "3"]
[White "Resourchess"]
[Black "dropstoneDP"]
[Result "0-1"]
[WhiteElo "2419"]
[BlackElo "2977"]
[TimeControl "180+1"]
[EndTime "8:27:16 PDT"]
[Termination "dropstoneDP won by resignation"]

1. d4 {[%clk 0:03:00]} 1... d5 {[%clk 0:02:59.9]} 2. c4 {[%clk 0:02:58.7]} 2...
dxc4 {[%clk 0:03:00.8]} 3. e3 {[%clk 0:02:58.2]} 3... Nf6 {[%clk 0:03:00.8]} 4.
Bxc4 {[%clk 0:02:58]} 4... e6 {[%clk 0:03:00.8]} 5. Nf3 {[%clk 0:02:58.3]} 5...
c5 {[%clk 0:02:59.9]} 6. O-O {[%clk 0:02:56.3]} 6... a6 {[%clk 0:03:00.4]} 7. a4
{[%clk 0:02:55.7]} 7... cxd4 {[%clk 0:02:49.1]} 8. Nxd4 {[%clk 0:02:53.4]} 8...
Be7 {[%clk 0:02:47.8]} 9. Nc3 {[%clk 0:02:42.6]} 9... O-O {[%clk 0:02:48]} 10.
Be2 {[%clk 0:02:37.6]} 10... Bd7 {[%clk 0:02:45.1]} 11. Bf3 {[%clk 0:02:33.9]}
11... Nc6 {[%clk 0:02:45.4]} 12. Nxc6 {[%clk 0:02:33.4]} 12... Bxc6 {[%clk
0:02:46.3]} 13. Bxc6 {[%clk 0:02:32.2]} 13... bxc6 {[%clk 0:02:47.2]} 14. Qf3
{[%clk 0:02:19.9]} 14... Bb4 {[%clk 0:02:45.8]} 15. Rd1 {[%clk 0:02:15.3]} 15...
Qa5 {[%clk 0:02:44.1]} 16. Bd2 {[%clk 0:02:14.1]} 16... Rac8 {[%clk 0:02:35.2]}
17. Be1 {[%clk 0:02:10.1]} 17... Nd5 {[%clk 0:02:19.1]} 18. Ne4 {[%clk
0:01:23.9]} 18... Bxe1 {[%clk 0:02:18.9]} 19. Rxe1 {[%clk 0:01:24.1]} 19... Qb4
{[%clk 0:02:18.2]} 20. Re2 {[%clk 0:00:57.8]} 20... Rfd8 {[%clk 0:02:18]} 21. h3
{[%clk 0:00:56.5]} 21... Rd7 {[%clk 0:02:17.6]} 22. Ng3 {[%clk 0:00:51.2]} 22...
c5 {[%clk 0:02:15.9]} 23. Qe4 {[%clk 0:00:50.3]} 23... Nf6 {[%clk 0:02:13.3]}
24. Qb1 {[%clk 0:00:44]} 24... Rcd8 {[%clk 0:02:11.8]} 25. Nf1 {[%clk
0:00:38.7]} 25... h5 {[%clk 0:02:09.8]} 26. Qe1 {[%clk 0:00:36.7]} 26... a5
{[%clk 0:02:06]} 27. Qxb4 {[%clk 0:00:36]} 27... cxb4 {[%clk 0:02:06.9]} 28. Rc2
{[%clk 0:00:35.4]} 28... Rd1 {[%clk 0:02:01.9]} 29. Rxd1 {[%clk 0:00:33.6]}
29... Rxd1 {[%clk 0:02:02.8]} 30. f3 {[%clk 0:00:33.2]} 30... Nd5 {[%clk
0:02:02.3]} 31. Kf2 {[%clk 0:00:33.2]} 31... Rxf1+ {[%clk 0:02:02]} 0-1

[Event "Early-Titled-Tuesday-Blitz-May-14-2024"]
[Site "Chess.com"]
[Date "2024.05.14"]
[Round "3"]
[White "SirGerhard"]
[Black "valik3504"]
[Result "0-1"]
[WhiteElo "2722"]
[BlackElo "2549"]
[TimeControl "180+1"]
[EndTime "8:27:21 PDT"]
[Termination "valik3504 won by resignation"]

1. d4 {[%clk 0:02:59.7]} 1... Nf6 {[%clk 0:02:59.4]} 2. Nf3 {[%clk 0:02:58.1]}
2... e6 {[%clk 0:02:57.3]} 3. c4 {[%clk 0:02:57.6]} 3... c5 {[%clk 0:02:56.5]}
4. d5 {[%clk 0:02:57.1]} 4... d6 {[%clk 0:02:56.7]} 5. Nc3 {[%clk 0:02:55.9]}
5... g6 {[%clk 0:02:57]} 6. e4 {[%clk 0:02:55.6]} 6... Bg7 {[%clk 0:02:57.5]} 7.
Bd3 {[%clk 0:02:55.2]} 7... O-O {[%clk 0:02:57.9]} 8. h3 {[%clk 0:02:53.8]} 8...
exd5 {[%clk 0:02:57.6]} 9. cxd5 {[%clk 0:02:53.3]} 9... b5 {[%clk 0:02:57.4]}
10. Nxb5 {[%clk 0:02:52.6]} 10... Re8 {[%clk 0:02:51.2]} 11. O-O {[%clk
0:02:48.7]} 11... Nxe4 {[%clk 0:02:50.7]} 12. Bxe4 {[%clk 0:02:49.1]} 12... Rxe4
{[%clk 0:02:49.8]} 13. Re1 {[%clk 0:02:50]} 13... Rxe1+ {[%clk 0:02:24.7]} 14.
Qxe1 {[%clk 0:02:50.9]} 14... a6 {[%clk 0:02:23.8]} 15. Bg5 {[%clk 0:02:43]}
15... f6 {[%clk 0:02:17.5]} 16. Nc7 {[%clk 0:02:35.4]} 16... Qxc7 {[%clk
0:02:16.8]} 17. Qe8+ {[%clk 0:02:34.7]} 17... Bf8 {[%clk 0:02:16.7]} 18. Bh6
{[%clk 0:02:13.8]} 18... Nd7 {[%clk 0:02:12.5]} 19. Qe6+ {[%clk 0:00:54]} 19...
Kh8 {[%clk 0:02:12.3]} 20. Qf7 {[%clk 0:00:31.5]} 20... Bxh6 {[%clk 0:01:44.7]}
21. Re1 {[%clk 0:00:30.5]} 21... Bf8 {[%clk 0:01:44.5]} 0-1

[Event "Early-Titled-Tuesday-Blitz-May-14-2024"]
[Site "Chess.com"]
[Date "2024.05.14"]
[Round "3"]
[White "Kors67"]
[Black "AccioChess"]
[Result "0-1"]
[WhiteElo "2244"]
[BlackElo "2423"]
[TimeControl "180+1"]
[EndTime "8:27:23 PDT"]
[Termination "AccioChess won by resignation"]

1. e4 {[%clk 0:03:00.9]} 1... c5 {[%clk 0:02:51.6]} 2. Nf3 {[%clk 0:02:59.9]}
2... Nc6 {[%clk 0:02:50.1]} 3. c3 {[%clk 0:02:59.9]} 3... d5 {[%clk 0:02:44.1]}
4. exd5 {[%clk 0:02:59.7]} 4... Qxd5 {[%clk 0:02:45]} 5. d4 {[%clk 0:03:00.2]}
5... Bf5 {[%clk 0:02:43]} 6. Be2 {[%clk 0:03:00.2]} 6... e6 {[%clk 0:02:42.1]}
7. O-O {[%clk 0:03:00.2]} 7... Nf6 {[%clk 0:02:41.8]} 8. Be3 {[%clk 0:03:00.2]}
8... cxd4 {[%clk 0:02:35.7]} 9. cxd4 {[%clk 0:03:00.2]} 9... Bb4 {[%clk
0:02:35.8]} 10. a3 {[%clk 0:02:59.6]} 10... Ba5 {[%clk 0:02:35.9]} 11. b4 {[%clk
0:02:59.6]} 11... Bb6 {[%clk 0:02:27.6]} 12. Nc3 {[%clk 0:02:59.4]} 12... Qd8
{[%clk 0:02:27.7]} 13. Na4 {[%clk 0:02:52.2]} 13... O-O {[%clk 0:02:27.5]} 14.
Nxb6 {[%clk 0:02:51.2]} 14... axb6 {[%clk 0:02:28.4]} 15. Bg5 {[%clk 0:02:26.8]}
15... h6 {[%clk 0:02:27.9]} 16. Bh4 {[%clk 0:02:20.4]} 16... Be4 {[%clk
0:02:21.7]} 17. b5 {[%clk 0:02:04.8]} 17... Bxf3 {[%clk 0:02:18.1]} 18. Bxf3
{[%clk 0:02:04.7]} 18... Nxd4 {[%clk 0:02:18.3]} 19. Bxb7 {[%clk 0:02:04.6]}
19... Ra7 {[%clk 0:02:18.8]} 20. Bc6 {[%clk 0:01:55.8]} 20... Nxc6 {[%clk
0:02:18.1]} 21. bxc6 {[%clk 0:01:55.5]} 21... Qxd1 {[%clk 0:02:18.2]} 22. Rfxd1
{[%clk 0:01:55]} 22... Nd5 {[%clk 0:02:18.6]} 23. Rac1 {[%clk 0:01:44.9]} 23...
Rc8 {[%clk 0:02:17.6]} 24. Rd3 {[%clk 0:01:31.9]} 24... Rac7 {[%clk 0:02:16.3]}
25. f4 {[%clk 0:01:14.1]} 25... Rxc6 {[%clk 0:02:06]} 26. Rxc6 {[%clk
0:01:13.1]} 26... Rxc6 {[%clk 0:02:06.9]} 27. f5 {[%clk 0:01:13.2]} 27... Rc2
{[%clk 0:01:55.8]} 28. fxe6 {[%clk 0:01:08.6]} 28... fxe6 {[%clk 0:01:56.7]} 29.
Bg3 {[%clk 0:01:07.2]} 29... g5 {[%clk 0:01:51.7]} 30. Be5 {[%clk 0:01:06.8]}
30... Kf7 {[%clk 0:01:51.9]} 31. h4 {[%clk 0:01:04.4]} 31... Kg6 {[%clk
0:01:41]} 32. hxg5 {[%clk 0:01:01.8]} 32... hxg5 {[%clk 0:01:41.9]} 33. Rb3
{[%clk 0:00:53.9]} 33... Kf5 {[%clk 0:01:40.9]} 34. Bd6 {[%clk 0:00:49.5]} 34...
Rc3 {[%clk 0:01:36.3]} 35. Rxc3 {[%clk 0:00:44.8]} 35... Nxc3 {[%clk 0:01:37.2]}
36. Kf2 {[%clk 0:00:43.5]} 36... Ne4+ {[%clk 0:01:37.1]} 0-1

[Event "Early-Titled-Tuesday-Blitz-May-14-2024"]
[Site "Chess.com"]
[Date "2024.05.14"]
[Round "3"]
[White "TenisMaster"]
[Black "Athanasios2"]
[Result "1-0"]
[WhiteElo "2916"]
[BlackElo "2673"]
[TimeControl "180+1"]
[EndTime "8:27:26 PDT"]
[Termination "TenisMaster won by resignation"]

1. e4 {[%clk 0:03:00.9]} 1... c5 {[%clk 0:02:58.7]} 2. Nf3 {[%clk 0:03:00.2]}
2... d6 {[%clk 0:02:59]} 3. d4 {[%clk 0:02:59.6]} 3... cxd4 {[%clk 0:02:59.6]}
4. Nxd4 {[%clk 0:03:00.3]} 4... Nf6 {[%clk 0:02:59.3]} 5. Nc3 {[%clk 0:03:00.9]}
5... Nc6 {[%clk 0:02:59.3]} 6. Bg5 {[%clk 0:03:00.2]} 6... e6 {[%clk 0:02:59.6]}
7. Qd2 {[%clk 0:03:00.1]} 7... Be7 {[%clk 0:03:00.3]} 8. O-O-O {[%clk
0:02:59.1]} 8... O-O {[%clk 0:03:00.9]} 9. f4 {[%clk 0:02:59.2]} 9... Nxd4
{[%clk 0:02:59.7]} 10. Qxd4 {[%clk 0:03:00]} 10... Qa5 {[%clk 0:03:00.2]} 11. e5
{[%clk 0:03:00.2]} 11... dxe5 {[%clk 0:03:00]} 12. Qxe5 {[%clk 0:03:00.9]} 12...
Qb6 {[%clk 0:02:37.9]} 13. Bd3 {[%clk 0:02:53.8]} 13... Rd8 {[%clk 0:02:29.7]}
14. Ne4 {[%clk 0:02:24]} 14... Rd5 {[%clk 0:02:16.1]} 15. Qc3 {[%clk 0:02:23.3]}
15... Qd8 {[%clk 0:01:54.4]} 16. Nxf6+ {[%clk 0:02:14.8]} 16... gxf6 {[%clk
0:01:51.3]} 17. Bh6 {[%clk 0:01:49.2]} 17... Kh8 {[%clk 0:01:25.9]} 18. Be4
{[%clk 0:01:44.2]} 18... Rd7 {[%clk 0:01:21.8]} 19. Rxd7 {[%clk 0:01:18.4]}
19... Bxd7 {[%clk 0:01:21.8]} 20. Rd1 {[%clk 0:01:19]} 1-0